fUST/lending_fUST_20240721
["ID","MTS","AMOUNT","RATE_DAILY","PERIOD"]
[332803830,1721536246479,-500.0,0.00013698,2]
[332803831,1721536246489,-500.0,0.00013698,2]
[332803832,1721536246498,-500.0,0.00013698,2]
[332803833,1721536246507,-512.099942,0.00013698,2]
[332803834,1721536246516,-500.0,0.00013698,2]
[332803835,1721536246525,-5252.85,0.00013698,2]
[332803836,1721536246534,-17308.74,0.00013698,2]
[332803837,1721536246543,-3362.84,0.00013698,2]
[332803838,1721536246553,-500.0,0.00013698,2]
[332803839,1721536246562,-512.099942,0.00013698,2]
[332803840,1721536246572,-500.0,0.00013698,2]
[332803841,1721536246581,-1856.22,0.00013698,2]
[332803842,1721536246591,-500.0,0.00013698,2]
[332803843,1721536246602,-501.5293362,0.00013698,2]
[332803844,1721536246612,-1566.52,0.00013698,2]
[332803845,1721536246621,-500.0,0.00013698,2]
[332803846,1721536246631,-1048.19,0.00013698,2]
[332803847,1721536246642,-504.61777039,0.00013698,2]
[332803848,1721536246651,-1257.69,0.00013698,2]
[332803849,1721536246660,-500.0,0.00013698,2]
[332803850,1721536246669,-500.0,0.00013698,2]
[332803851,1721536246680,-7537.32,0.00013698,2]
[332803852,1721536246689,-2899.31,0.00013698,2]
[332803853,1721536246700,-2856.26,0.00013698,2]
[332803854,1721536246711,-2464.77,0.00013698,2]
[332803855,1721536246720,-500.0,0.00013698,2]
[332803856,1721536246730,-519.48229262,0.00013698,2]
[332803857,1721536246739,-500.0,0.00013698,2]
[332803858,1721536246749,-500.0,0.00013698,2]
[332803859,1721536246759,-718.49,0.00013698,2]
[332803860,1721536246770,-500.0,0.00013698,2]
[332803861,1721536246779,-603.44,0.00013698,2]
[332803862,1721536246789,-4564.62,0.00013698,2]
[332803863,1721536246799,-952.43,0.00013698,2]
[332803864,1721536246808,-897.58,0.00013698,2]
[332803865,1721536246818,-507.09727474,0.00013698,2]
[332803866,1721536246829,-586.78,0.00013698,2]
[332803867,1721536246839,-500.0,0.00013698,2]
[332803868,1721536246849,-500.0,0.00013698,2]
[332803869,1721536246860,-10757.27,0.00013698,2]
[332803870,1721536246871,-480.92618224,0.00013698,2]
[332803871,1721536246882,-500.0,0.00013698,2]
[332803872,1721536246891,-500.0,0.00013698,2]
[332803873,1721536246902,-500.0,0.00013698,2]
[332803874,1721536246915,-3059.9,0.00013698,2]
[332803875,1721536246927,-546.61,0.00013698,2]
[332803876,1721536246937,-1686.37,0.00013698,2]
[332803877,1721536246949,-2375.84,0.00013698,2]
[332803878,1721536246961,-310.81795827,0.00013698,2]
[332803879,1721536246970,-500.0,0.00013698,2]
[332803880,1721536246980,-820.98,0.00013698,2]
[332803881,1721536246990,-8280.88,0.00013698,2]
[332803882,1721536246999,-500.0,0.00013698,2]
[332803883,1721536247012,-1619.46,0.00013698,2]
[332803884,1721536247022,-1619.46,0.00013698,2]
[332803885,1721536247030,-1619.46,0.00013698,2]
[332803886,1721536247040,-1619.46,0.00013698,2]
[332803887,1721536247049,-1619.46,0.00013698,2]
[332803888,1721536247059,-500.0,0.00013698,2]
[332803889,1721536247069,-1619.46,0.00013698,2]
[332803890,1721536247078,-1619.46,0.00013698,2]
[332803891,1721536247087,-1619.46,0.00013698,2]
[332803892,1721536247097,-1619.46,0.00013698,2]
[332803893,1721536247106,-1619.46,0.00013698,2]
[332803894,1721536247115,-1619.46,0.00013698,2]
[332803895,1721536247124,-1619.46,0.00013698,2]
[332803896,1721536247134,-1619.46,0.00013698,2]
[332803897,1721536247142,-500.0,0.00013698,2]
[332803898,1721536247152,-1619.46,0.00013698,2]
[332803899,1721536247161,-1619.46,0.00013698,2]
[332803900,1721536247170,-500.0,0.00013698,2]
[332803901,1721536247179,-500.0,0.00013698,2]
[332803902,1721536247189,-500.0,0.00013698,2]
[332803903,1721536247198,-2774.36,0.00013698,2]
[332803904,1721536247207,-501.43167891,0.00013698,2]
[332803905,1721536247215,-500.0,0.00013698,2]
[332803906,1721536247224,-500.0,0.00013698,2]
[332803907,1721536247233,-500.0,0.00013698,2]
[332803908,1721536247242,-500.0,0.00013698,2]
[332803909,1721536247251,-501.33225345,0.00013698,2]
[332803910,1721536247261,-500.0,0.00013698,2]
[332803911,1721536247271,-1830.32,0.00013698,2]
[332803912,1721536247281,-500.0,0.00013698,2]
[332803913,1721536247292,-500.0,0.00013698,2]
[332803914,1721536247301,-1014.75,0.00013698,2]
[332803915,1721536247310,-500.0,0.00013698,2]
[332803916,1721536247318,-500.0,0.00013698,2]
[332803917,1721536247327,-1087.81,0.00013698,2]
[332803918,1721536247336,-990.29,0.00013698,2]
[332803919,1721536247345,-500.0,0.00013698,2]
[332803920,1721536247355,-915.6,0.00013698,2]
[332803921,1721536247365,-517.81637955,0.00013698,2]
[332803922,1721536247374,-1042.52,0.00013698,2]
[332803923,1721536247383,-501.12268419,0.00013698,2]
[332803924,1721536247392,-577.43,0.00013698,2]
[332803925,1721536247401,-11744.73,0.00013698,2]
[332803926,1721536247410,-1189.51,0.00013698,2]
[332803927,1721536247419,-500.0,0.00013698,2]
[332803928,1721536247429,-893.44,0.00013698,2]
[332803929,1721536247438,-1686.5,0.00013698,2]
[332803930,1721536247448,-500.0,0.00013698,2]
[332803931,1721536247458,-500.0,0.00013698,2]
[332803932,1721536247467,-500.0,0.00013698,2]
[332803933,1721536247477,-846.94,0.00013698,2]
[332803934,1721536247487,-506.1306222,0.00013698,2]
[332803935,1721536247496,-500.0,0.00013698,2]
[332803936,1721536247505,-500.0,0.00013698,2]
[332803937,1721536247514,-3923.85,0.00013698,2]
[332803938,1721536247523,-649.58,0.00013698,2]
[332803939,1721536247532,-2570.26,0.00013698,2]
[332803940,1721536247542,-1292.94,0.00013698,2]
[332803941,1721536247551,-500.0,0.00013698,2]
[332803942,1721536247560,-500.0,0.00013698,2]
[332803943,1721536247570,-500.0,0.00013698,2]
[332803944,1721536247579,-1229.65,0.00013698,2]
[332803945,1721536247593,-151.0,0.00013698,2]
[332803946,1721536247602,-500.0,0.00013698,2]
[332803947,1721536247611,-500.0,0.00013698,2]
[332803948,1721536247620,-500.0,0.00013698,2]
[332803949,1721536247630,-500.0,0.00013698,2]
[332803950,1721536247639,-897.72,0.00013698,2]
[332803951,1721536247649,-655.76,0.00013698,2]
[332803952,1721536247658,-2076.85,0.00013698,2]
[332803953,1721536247669,-500.0,0.00013698,2]
[332803954,1721536247678,-2282.34,0.00013698,2]
[332803955,1721536247688,-500.0,0.00013698,2]
[332803956,1721536247697,-500.0,0.00013698,2]
[332803957,1721536247707,-500.0,0.00013698,2]
[332803958,1721536247717,-500.0,0.00013698,2]
[332803959,1721536247728,-500.0,0.00013698,2]
[332803960,1721536247738,-291.18737094,0.00013698,2]
[332803961,1721536247747,-500.0,0.00013698,2]
[332803962,1721536247757,-500.0,0.00013698,2]
[332803963,1721536247766,-515.62998071,0.00013698,2]
[332803964,1721536247776,-500.0,0.00013698,2]
[332803965,1721536247785,-654.93,0.00013698,2]
[332803966,1721536247795,-500.0,0.00013698,2]
[332803967,1721536247805,-500.0,0.00013698,2]
[332803968,1721536247814,-500.0,0.00013698,2]
[332803969,1721536247825,-500.0,0.00013698,2]
[332803970,1721536247835,-503.48450541,0.00013698,2]
[332803971,1721536247846,-2021.04,0.00013698,2]
[332803972,1721536247858,-500.0,0.00013698,2]
[332803973,1721536247868,-500.0,0.00013698,2]
[332803974,1721536247877,-500.0,0.00013698,2]
[332803975,1721536247887,-858.14,0.00013698,2]
[332803976,1721536247897,-500.0,0.00013698,2]
[332803977,1721536247908,-500.0,0.00013698,2]
[332803978,1721536247919,-1073.94,0.00013698,2]
[332803979,1721536247930,-500.0,0.00013698,2]
[332803980,1721536247940,-500.0,0.00013698,2]
[332803981,1721536247950,-1219.61,0.00013698,2]
[332803982,1721536247962,-500.0,0.00013698,2]
[332803983,1721536247971,-457.32546745,0.00013698,2]
[332803984,1721536247982,-500.0,0.00013698,2]
[332803985,1721536247991,-500.0,0.00013698,2]
[332803986,1721536248001,-500.0,0.00013698,2]
[332803987,1721536248010,-572.28,0.00013698,2]
[332803988,1721536248020,-500.0,0.00013698,2]
[332803989,1721536248029,-1041.28,0.00013698,2]
[332803990,1721536248039,-500.0,0.00013698,2]
[332803991,1721536248049,-500.0,0.00013698,2]
[332803992,1721536248059,-293.625929,0.00013699,2]
[332803993,1721536248068,-151.0,0.00013699,2]
[332803994,1721536248078,-151.0,0.00013699,2]
[332803995,1721536248087,-267.043893,0.00013699,2]
[332803996,1721536248097,-151.0,0.00013699,2]
[332803997,1721536248106,-3000.0,0.00013699,2]
[332803998,1721536248116,-293.8031846,0.000137,2]
[332803999,1721536248125,-153.0,0.000137,2]
[332804000,1721536248136,-1619.46,0.00013736,2]
[332804001,1721536248146,-155.0,0.0001377,2]
[332804002,1721536248155,-5304.19710114,0.00013825,2]
[332804003,1721536248165,-367.35615468,0.00013827,2]
[332804004,1721536248175,-151.62433448,0.00013897,2]
[332804005,1721536248184,-29568.53027479,0.000139,5]
[332804006,1721536248194,-116789.73940158,0.000139,2]
[332804007,1721536248203,-1413.604,0.00013965,2]
[332804008,1721536248213,-150.657,0.00013965,2]
[332804009,1721536248222,-505.0,0.00013965,2]
[332804010,1721536248233,-500.0,0.0001397,2]
[332804011,1721536248242,-500.0,0.0001397,2]
[332804012,1721536248251,-500.0,0.00013971,2]
[332804013,1721536248261,-500.0,0.00013971,2]
[332804014,1721536248271,-500.0,0.00013971,2]
[332804015,1721536248280,-500.0,0.00013971,2]
[332804016,1721536248291,-500.0,0.00013971,2]
[332804017,1721536248302,-500.0,0.00013971,2]
[332804018,1721536248312,-500.0,0.00013971,2]
[332804019,1721536248322,-500.0,0.00013971,2]
[332804020,1721536248332,-549.25474034,0.00013971,2]
[332804021,1721536248342,-500.0,0.00013971,2]
[332804022,1721536248353,-500.0,0.00013971,2]
[332804023,1721536248363,-500.0,0.00013971,2]
[332804024,1721536248373,-500.0,0.00013971,2]
[332804025,1721536248383,-500.0,0.00013971,2]
[332804026,1721536248393,-500.0,0.00013971,2]
[332804027,1721536248403,-500.0,0.00013971,2]
[332804028,1721536248413,-500.0,0.00013971,2]
[332804029,1721536248424,-500.0,0.00013971,2]
[332804030,1721536248434,-500.0,0.00013971,2]
[332804031,1721536248444,-500.0,0.00013971,2]
[332804032,1721536248456,-500.0,0.00013971,2]
[332804033,1721536248466,-500.0,0.00013971,2]
[332804034,1721536248477,-500.0,0.00013971,2]
[332804035,1721536248488,-473.39537571,0.00013971,2]
[332804036,1721536248498,-392.09795019,0.00013971,2]
[332804037,1721536248508,-1619.46,0.00013971,2]
[332804038,1721536248517,-1619.46,0.00013971,2]
[332804039,1721536248527,-1619.46,0.00013971,2]
[332804040,1721536248537,-1619.46,0.00013971,2]
[332804041,1721536248547,-1619.46,0.00013971,2]
[332804042,1721536248557,-1619.46,0.00013971,2]
[332804043,1721536248568,-1619.46,0.00013971,2]
[332804044,1721536248578,-1619.65092737,0.00013971,2]
[332804045,1721536248594,-461.45377278,0.00013972,2]
[332804046,1721536248605,-202.3113304,0.00013972,2]
[332804047,1721536248615,-154.77557542,0.00013972,2]
[332804048,1721536248627,-1628.96768289,0.00013972,2]
[332804049,1721536248637,-1678.0656644,0.00013972,2]
[332804050,1721536248648,-19440.57551927,0.00013972,2]
[332804051,1721536248658,-500.0,0.00013972,2]
[332804052,1721536248673,-500.0,0.00013972,2]
[332804053,1721536248684,-500.0,0.00013972,2]
[332804054,1721536248697,-915.58,0.00013972,2]
[332804055,1721536248707,-160.32548449,0.00013972,2]
[332804056,1721536248719,-500.0,0.00013972,2]
[332804057,1721536248729,-500.0,0.00013972,2]
[332804058,1721536248740,-502.11194935,0.00013972,2]
[332804059,1721536248750,-861.29,0.00013972,2]
[332804060,1721536248761,-500.0,0.00013972,2]
[332804061,1721536248772,-869.65,0.00013972,2]
[332804062,1721536248785,-565.48950967,0.00013972,2]
[332804063,1721536248796,-500.0,0.00013972,2]
[332804064,1721536248806,-735.22,0.00013972,2]
[332804065,1721536248816,-500.0,0.00013972,2]
[332804066,1721536248826,-500.0,0.00013972,2]
[332804067,1721536248837,-500.0,0.00013972,2]
[332804068,1721536248848,-547.59,0.00013972,2]
[332804069,1721536248859,-500.0,0.00013972,2]
[332804070,1721536248870,-500.0,0.00013972,2]
[332804071,1721536248880,-741.1,0.00013972,2]
[332804072,1721536248891,-500.0,0.00013972,2]
[332804073,1721536248901,-622.97,0.00013972,2]
[332804074,1721536248911,-500.0,0.00013972,2]
[332804075,1721536248921,-523.66,0.00013972,2]
[332804076,1721536248931,-166.55481236,0.00013972,2]
[332804077,1721536248942,-500.0,0.00013972,2]
[332804078,1721536248952,-500.0,0.00013972,2]
[332804079,1721536248962,-500.0,0.00013972,2]
[332804080,1721536248972,-1191.93,0.00013972,2]
[332804081,1721536248983,-500.0,0.00013972,2]
[332804082,1721536248993,-500.0,0.00013972,2]
[332804083,1721536249003,-500.0,0.00013972,2]
[332804084,1721536249013,-500.0,0.00013972,2]
[332804085,1721536249023,-500.0,0.00013972,2]
[332804086,1721536249034,-500.0,0.00013972,2]
[332804087,1721536249045,-504.07455151,0.00013972,2]
[332804088,1721536249055,-500.0,0.00013972,2]
[332804089,1721536249065,-500.0,0.00013972,2]
[332804090,1721536249075,-606.59,0.00013972,2]
[332804091,1721536249085,-500.0,0.00013972,2]
[332804092,1721536249096,-500.0,0.00013972,2]
[332804093,1721536249109,-500.0,0.00013972,2]
[332804094,1721536249119,-500.0,0.00013972,2]
[332804095,1721536249132,-500.0,0.00013972,2]
[332804096,1721536249142,-500.0,0.00013972,2]
[332804097,1721536249153,-500.0,0.00013972,2]
[332804098,1721536249164,-500.0,0.00013972,2]
[332804099,1721536249175,-500.0,0.00013972,2]
[332804100,1721536249186,-500.0,0.00013972,2]
[332804101,1721536249197,-500.0,0.00013972,2]
[332804102,1721536249208,-500.0,0.00013972,2]
[332804103,1721536249221,-500.0,0.00013972,2]
[332804104,1721536249232,-500.0,0.00013972,2]
[332804105,1721536249243,-500.0,0.00013972,2]
[332804106,1721536249253,-500.0,0.00013972,2]
[332804107,1721536249265,-500.0,0.00013972,2]
[332804108,1721536249275,-503.73580191,0.00013972,2]
[332804109,1721536249285,-500.0,0.00013972,2]
[332804110,1721536249295,-500.0,0.00013972,2]
[332804111,1721536249312,-645.13695881,0.00013972,2]
[332804112,1721536249321,-500.0,0.00013972,2]
[332804113,1721536249332,-500.0,0.00013972,2]
[332804114,1721536249343,-500.0,0.00013972,2]
[332804115,1721536249354,-500.0,0.00013972,2]
[332804116,1721536249364,-500.0,0.00013972,2]
[332804117,1721536249375,-500.0,0.00013972,2]
[332804118,1721536249385,-500.0,0.00013972,2]
[332804119,1721536249396,-715.2,0.00013972,2]
[332804120,1721536249405,-500.0,0.00013972,2]
[332804121,1721536249415,-2238.11,0.00013972,2]
[332804122,1721536249428,-520.34,0.00013972,2]
[332804123,1721536249438,-1388.05,0.00013972,2]
[332804124,1721536249448,-505.92769148,0.00013972,2]
[332804125,1721536249459,-500.0,0.00013972,2]
[332804126,1721536249468,-500.0,0.00013972,2]
[332804127,1721536249478,-505.39149835,0.00013972,2]
[332804128,1721536249488,-343.29745174,0.00013972,2]
[332804129,1721536249498,-500.0,0.00013972,2]
[332804130,1721536249509,-515.52,0.00013972,2]
[332804131,1721536249519,-274.77327132,0.00013972,2]
[332804132,1721536249529,-580.74,0.00013972,2]
[332804133,1721536249540,-500.0,0.00013972,2]
[332804134,1721536249549,-500.0,0.00013972,2]
[332804135,1721536249560,-257.77649434,0.00013972,2]
[332804136,1721536249571,-500.0,0.00013972,2]
[332804137,1721536249581,-500.0,0.00013972,2]
[332804138,1721536249594,-621.17,0.00013972,2]
[332804139,1721536249604,-500.0,0.00013972,2]
[332804140,1721536249617,-500.0,0.00013972,2]
[332804141,1721536249628,-500.0,0.00013972,2]
[332804142,1721536249640,-534.93,0.00013972,2]
[332804143,1721536249651,-500.0,0.00013972,2]
[332804144,1721536249660,-500.0,0.00013972,2]
[332804145,1721536249671,-500.0,0.00013972,2]
[332804146,1721536249681,-500.0,0.00013972,2]
[332804147,1721536249692,-500.0,0.00013972,2]
[332804148,1721536249702,-500.0,0.00013972,2]
[332804149,1721536249713,-513.98373387,0.00013972,2]
[332804150,1721536249724,-500.0,0.00013972,2]
[332804151,1721536249735,-553.17107908,0.00013972,2]
[332804152,1721536249748,-2706.19,0.00013972,2]
[332804153,1721536249758,-500.0,0.00013972,2]
[332804154,1721536249768,-500.0,0.00013972,2]
[332804155,1721536249778,-1809.04,0.00013972,2]
[332804156,1721536249788,-500.0,0.00013972,2]
[332804157,1721536249798,-1895.26,0.00013972,2]
[332804158,1721536249808,-712.25,0.00013972,2]
[332804159,1721536249818,-1472.91,0.00013972,2]
[332804160,1721536249828,-759.39,0.00013972,2]
[332804161,1721536249838,-544.25,0.00013972,2]
[332804162,1721536249849,-500.0,0.00013972,2]
[332804163,1721536249859,-500.0,0.00013972,2]
[332804164,1721536249869,-500.0,0.00013972,2]
[332804165,1721536249879,-633.18,0.00013972,2]
[332804166,1721536249890,-500.0,0.00013972,2]
[332804167,1721536249900,-500.0,0.00013972,2]
[332804168,1721536249910,-888.28,0.00013972,2]
[332804169,1721536249921,-500.0,0.00013972,2]
[332804170,1721536249931,-2752.59,0.00013972,2]
[332804171,1721536249941,-171.40599026,0.00013972,2]
[332804172,1721536249952,-502.54817134,0.00013972,2]
[332804173,1721536249962,-502.40678066,0.00013972,2]
[332804174,1721536249972,-500.0,0.00013972,2]
[332804175,1721536249982,-344.22504912,0.00013972,2]
[332804176,1721536249992,-758.96,0.00013972,2]
[332804177,1721536250002,-500.0,0.00013972,2]
[332804178,1721536250013,-500.0,0.00013972,2]
[332804179,1721536250024,-605.69,0.00013972,2]
[332804180,1721536250034,-1063.01,0.00013972,2]
[332804181,1721536250045,-1221.06,0.00013972,2]
[332804182,1721536250055,-1146.38,0.00013972,2]
[332804183,1721536250067,-617.71,0.00013972,2]
[332804184,1721536250077,-2056.1,0.00013972,2]
[332804185,1721536250088,-500.0,0.00013972,2]
[332804186,1721536250099,-500.0,0.00013972,2]
[332804187,1721536250109,-500.0,0.00013972,2]
[332804188,1721536250119,-500.0,0.00013972,2]
[332804189,1721536250129,-522.52174364,0.00013972,2]
[332804190,1721536250138,-500.0,0.00013972,2]
[332804191,1721536250148,-500.0,0.00013972,2]
[332804192,1721536250158,-500.0,0.00013972,2]
[332804193,1721536250169,-500.0,0.00013972,2]
[332804194,1721536250178,-500.0,0.00013972,2]
[332804195,1721536250188,-500.0,0.00013972,2]
[332804196,1721536250198,-500.0,0.00013972,2]
[332804197,1721536250209,-500.0,0.00013972,2]
[332804198,1721536250218,-4000.91,0.00013972,2]
[332804199,1721536250228,-500.0,0.00013972,2]
[332804200,1721536250238,-564.09,0.00013972,2]
[332804201,1721536250250,-500.0,0.00013972,2]
[332804202,1721536250259,-635.23,0.00013972,2]
[332804203,1721536250270,-500.0,0.00013972,2]
[332804204,1721536250280,-556.72,0.00013972,2]
[332804205,1721536250290,-513.96833287,0.00013972,2]
[332804206,1721536250299,-1486.09,0.00013972,2]
[332804207,1721536250309,-500.0,0.00013972,2]
[332804208,1721536250319,-500.0,0.00013972,2]
[332804209,1721536250329,-500.0,0.00013972,2]
[332804210,1721536250339,-500.0,0.00013972,2]
[332804211,1721536250348,-500.0,0.00013972,2]
[332804212,1721536250358,-500.0,0.00013972,2]
[332804213,1721536250367,-500.0,0.00013972,2]
[332804214,1721536250377,-500.0,0.00013972,2]
[332804215,1721536250387,-806.1,0.00013972,2]
[332804216,1721536250397,-500.0,0.00013972,2]
[332804217,1721536250407,-500.0,0.00013972,2]
[332804218,1721536250417,-500.0,0.00013972,2]
[332804219,1721536250427,-578.55,0.00013972,2]
[332804220,1721536250437,-1755.58,0.00013972,2]
[332804221,1721536250447,-831.67,0.00013972,2]
[332804222,1721536250457,-1031.92,0.00013972,2]
[332804223,1721536250467,-512.82091932,0.00013972,2]
[332804224,1721536250477,-500.0,0.00013972,2]
[332804225,1721536250667,-500.0,0.00013972,2]
[332804226,1721536250678,-500.0,0.00013972,2]
[332804227,1721536250688,-500.0,0.00013972,2]
[332804228,1721536250698,-500.0,0.00013972,2]
[332804229,1721536250707,-500.0,0.00013972,2]
[332804230,1721536250717,-690.88,0.00013972,2]
[332804231,1721536250727,-500.0,0.00013972,2]
[332804232,1721536250738,-500.0,0.00013972,2]
[332804233,1721536250748,-500.0,0.00013972,2]
[332804234,1721536250758,-775.33,0.00013972,2]
[332804235,1721536250768,-577.04,0.00013972,2]
[332804236,1721536250778,-508.57805667,0.00013972,2]
[332804237,1721536250787,-524.72,0.00013972,2]
[332804238,1721536250797,-1350.42893992,0.00013972,2]
[332804301,1721537438342,-267.82036957,9.8e-05,2]
[332804303,1721537438354,-34.68822443,9.999e-05,2]
[332804306,1721537438368,-120.17830972,9.999e-05,2]
[332804308,1721537438379,-223.11820884,9.999e-05,2]
[332804310,1721537438391,-373.94668598,9.999e-05,2]
[332804312,1721537438403,-396.65131175,9.999e-05,2]
[332804314,1721537438414,-154.77557542,9.999e-05,2]
[332804316,1721537438426,-156.62960029,9.999e-05,2]
[332804317,1721537438439,-403.25052629,9.999e-05,2]
[332804318,1721537438454,-154.86073047,9.999e-05,2]
[332804319,1721537438468,-211.1,0.00010959,2]
[332804320,1721537438479,-159.090909,0.00012074,2]
[332804321,1721537438490,-159.090909,0.00012164,2]
[332804322,1721537438502,-159.090909,0.00012253,2]
[332804323,1721537438514,-159.090909,0.00012343,2]
[332804325,1721537438526,-159.090909,0.00012433,2]
[332804327,1721537438538,-159.090909,0.00012523,2]
[332804329,1721537438548,-159.090909,0.00012613,2]
[332804331,1721537438560,-159.090909,0.00012703,2]
[332804334,1721537438573,-908.58800021,0.00013598,2]
[332804336,1721537438584,-871.19244016,0.00013688,2]
[332804338,1721537438597,-16921.70635968,0.00013688,2]
[332804341,1721537438610,-1848.13890946,0.00013688,2]
[332804343,1721537438621,-3297.63109979,0.0001369,2]
[332804345,1721537438636,-374.51627183,0.0001369,2]
[332804347,1721537438649,-10733.88072142,0.0001369,2]
[332804349,1721537438662,-1544.13388645,0.0001369,2]
[332804352,1721537438677,-302.12403396,0.0001369,2]
[332804354,1721537438689,-1489.77510255,0.0001369,2]
[332804356,1721537438700,-500.0,0.00013698,2]
[332804358,1721537438712,-500.0,0.00013698,2]
[332804360,1721537438723,-500.0,0.00013698,2]
[332804362,1721537438733,-500.0,0.00013698,2]
[332804364,1721537438744,-500.0,0.00013698,2]
[332804367,1721537438754,-500.0,0.00013698,2]
[332804368,1721537438765,-500.0,0.00013698,2]
[332804369,1721537438776,-500.0,0.00013698,2]
[332804370,1721537438786,-500.0,0.00013698,2]
[332804371,1721537438797,-500.0,0.00013698,2]
[332804372,1721537438808,-500.0,0.00013698,2]
[332804373,1721537438819,-500.0,0.00013698,2]
[332804374,1721537438830,-500.0,0.00013698,2]
[332804375,1721537438841,-500.0,0.00013698,2]
[332804376,1721537438852,-500.0,0.00013698,2]
[332804377,1721537438862,-500.0,0.00013698,2]
[332804378,1721537438873,-500.0,0.00013698,2]
[332804379,1721537438883,-500.0,0.00013698,2]
[332804380,1721537438894,-500.0,0.00013698,2]
[332804381,1721537438905,-500.0,0.00013698,2]
[332804382,1721537438915,-500.0,0.00013698,2]
[332804383,1721537438926,-500.0,0.00013698,2]
[332804384,1721537438937,-500.0,0.00013698,2]
[332804385,1721537438948,-500.0,0.00013698,2]
[332804386,1721537438959,-500.0,0.00013698,2]
[332804387,1721537438969,-500.0,0.00013698,2]
[332804388,1721537438980,-500.0,0.00013698,2]
[332804389,1721537438991,-500.0,0.00013698,2]
[332804390,1721537439002,-500.0,0.00013698,2]
[332804391,1721537439012,-500.0,0.00013698,2]
[332804392,1721537439023,-233.9715783,0.00013698,2]
[332804393,1721537439034,-500.0,0.00013698,2]
[332804394,1721537439044,-500.0,0.00013698,2]
[332804395,1721537439055,-500.0,0.00013698,2]
[332804396,1721537439065,-500.0,0.00013698,2]
[332804397,1721537439077,-500.0,0.00013698,2]
[332804398,1721537439088,-500.0,0.00013698,2]
[332804399,1721537439099,-500.0,0.00013698,2]
[332804400,1721537439110,-500.0,0.00013698,2]
[332804401,1721537439121,-622.70034335,0.00013698,2]
[332804402,1721537439131,-285.56317696,0.00013698,2]
[332804403,1721537439142,-500.0,0.00013698,2]
[332804404,1721537439153,-500.0,0.00013698,2]
[332804406,1721537439164,-424.52037373,0.00013698,2]
[332804408,1721537439176,-500.0,0.00013698,2]
[332804410,1721537439187,-500.0,0.00013698,2]
[332804412,1721537439198,-500.0,0.00013698,2]
[332804414,1721537439209,-500.0,0.00013698,2]
[332804416,1721537439219,-500.0,0.00013698,2]
[332804418,1721537439230,-500.0,0.00013698,2]
[332804420,1721537439241,-500.0,0.00013698,2]
[332804422,1721537439251,-500.0,0.00013698,2]
[332804424,1721537439262,-618.69219535,0.00013698,2]
[332804426,1721537439273,-500.0,0.00013698,2]
[332804429,1721537439284,-500.0,0.00013698,2]
[332804431,1721537439295,-500.0,0.00013698,2]
[332804433,1721537439306,-443.99979553,0.00013698,2]
[332804435,1721537439317,-500.0,0.00013698,2]
[332804437,1721537439327,-500.0,0.00013698,2]
[332804439,1721537439338,-500.0,0.00013698,2]
[332804442,1721537439348,-500.0,0.00013698,2]
[332804444,1721537439359,-500.0,0.00013698,2]